[Event "Titled Tuesday Blitz January 03 Late 2023"]
[White "Meduri, Aakaash"]
[Black "Souza, Gustavo Horokoski De"]
[WhiteFideId "2032252"]
[BlackFideId "2146584"]
[WhiteElo "2061"]
[BlackElo "1943"]
[Result "1/2-1/2"]
[Round "05"]
[TimeControl "180+2"]
[Date "2023.01.03"]
[WhiteClock "0:01:02"]
[BlackClock "0:00:25"]

1. d4 {[%clk 0:03:00]}  Nf6 {[%clk 0:02:57]} 2. c4 {[%clk 0:03:00]}  c5 {[%clk 0:02:56]} 3. d5 {[%clk 0:03:00]}  e6 {[%clk 0:02:53]} 4. Nf3 {[%clk 0:02:58]}  exd5 {[%clk 0:02:53]} 5. cxd5 {[%clk 0:02:58]}  d6 {[%clk 0:02:53]} 6. Nc3 {[%clk 0:02:55]}  g6 {[%clk 0:02:52]} 7. e4 {[%clk 0:02:54]}  Bg7 {[%clk 0:02:49]} 8. Be2 {[%clk 0:02:52]}  Bg4 {[%clk 0:02:46]} 9. h3 {[%clk 0:02:51]}  Bxf3 {[%clk 0:02:44]} 10. Bxf3 {[%clk 0:02:52]}  O-O {[%clk 0:02:44]} 11. O-O {[%clk 0:02:53]}  Nbd7 {[%clk 0:02:35]} 12. Re1 {[%clk 0:02:51]}  a6 {[%clk 0:02:25]} 13. a4 {[%clk 0:02:50]}  c4 {[%clk 0:02:18]} 14. Be3 {[%clk 0:02:47]}  Rc8 {[%clk 0:02:07]} 15. Rc1 {[%clk 0:02:37]}  Nc5 {[%clk 0:02:00]} 16. Bxc5 {[%clk 0:02:32]}  Rxc5 {[%clk 0:02:01]} 17. e5 {[%clk 0:02:30]}  dxe5 {[%clk 0:01:54]} 18. d6 {[%clk 0:02:30]}  e4 {[%clk 0:01:44]} 19. Nxe4 {[%clk 0:02:29]}  Nxe4 {[%clk 0:01:43]} 20. Bxe4 {[%clk 0:02:30]}  Bxb2 {[%clk 0:01:40]} 21. Rc2 {[%clk 0:02:29]}  Be5 {[%clk 0:01:30]} 22. Bxb7 {[%clk 0:02:26]}  Qxd6 {[%clk 0:01:22]} 23. Qxd6 {[%clk 0:02:23]}  Bxd6 {[%clk 0:01:23]} 24. Bxa6 {[%clk 0:02:23]}  Ra8 {[%clk 0:01:16]} 25. Bb5 {[%clk 0:02:18]}  c3 {[%clk 0:01:15]} 26. Kf1 {[%clk 0:02:04]}  Re5 {[%clk 0:01:08]} 27. Rxe5 {[%clk 0:01:56]}  Bxe5 {[%clk 0:01:08]} 28. Ke2 {[%clk 0:01:56]}  Kf8 {[%clk 0:01:04]} 29. Kd3 {[%clk 0:01:56]}  Ke7 {[%clk 0:01:03]} 30. Kc4 {[%clk 0:01:56]}  Kd6 {[%clk 0:01:01]} 31. Kb4 {[%clk 0:01:56]}  Kc7 {[%clk 0:00:49]} 32. a5 {[%clk 0:01:55]}  Rd8 {[%clk 0:00:45]} 33. a6 {[%clk 0:01:49]}  Kb6 {[%clk 0:00:41]} 34. Be2 {[%clk 0:01:41]}  Rd2 {[%clk 0:00:34]} 35. Rxd2 {[%clk 0:01:40]}  cxd2 {[%clk 0:00:34]} 36. g3 {[%clk 0:01:37]}  f6 {[%clk 0:00:23]} 37. f4 {[%clk 0:01:29]}  Bd4 {[%clk 0:00:23]} 38. g4 {[%clk 0:01:23]}  g5 {[%clk 0:00:20]} 39. Kc4 {[%clk 0:01:20]}  Be3 {[%clk 0:00:19]} 40. fxg5 {[%clk 0:01:19]}  fxg5 {[%clk 0:00:17]} 41. Kd5 {[%clk 0:01:19]}  d1=Q+ {[%clk 0:00:13]} 42. Bxd1 {[%clk 0:01:19]}  Kxa6 {[%clk 0:00:13]} 43. Ke5 {[%clk 0:01:18]}  Bf4+ {[%clk 0:00:13]} 44. Kf6 {[%clk 0:01:18]}  Kb6 {[%clk 0:00:14]} 45. Kg7 {[%clk 0:01:18]}  Kc7 {[%clk 0:00:14]} 46. Kxh7 {[%clk 0:01:19]}  Kd8 {[%clk 0:00:14]} 47. Kg6 {[%clk 0:01:19]}  Bd2 {[%clk 0:00:14]} 48. Kf5 {[%clk 0:01:18]}  Ke7 {[%clk 0:00:14]} 49. Bb3 {[%clk 0:01:18]}  Kf8 {[%clk 0:00:14]} 50. Ke4 {[%clk 0:01:17]}  Kg7 {[%clk 0:00:14]} 51. Kf5 {[%clk 0:01:17]}  Bf4 {[%clk 0:00:15]} 52. h4 {[%clk 0:01:17]}  Bc1 {[%clk 0:00:14]} 53. h5 {[%clk 0:01:10]}  Bf4 {[%clk 0:00:14]} 54. Bc2 {[%clk 0:01:05]}  Kh6 {[%clk 0:00:14]} 55. Kf6 {[%clk 0:01:03]}  Bc1 {[%clk 0:00:15]} 56. Bf5 {[%clk 0:01:02]}  Bf4 {[%clk 0:00:16]} 57. Ke6 {[%clk 0:01:02]}  Bc1 {[%clk 0:00:17]} 58. Kd5 {[%clk 0:01:03]}  Bf4 {[%clk 0:00:17]} 59. Ke4 {[%clk 0:01:03]}  Bh2 {[%clk 0:00:18]} 60. Kf3 {[%clk 0:01:03]}  Bf4 {[%clk 0:00:19]} 61. Kg2 {[%clk 0:01:03]}  Bb8 {[%clk 0:00:20]} 62. Kf2 {[%clk 0:01:03]}  Ba7+ {[%clk 0:00:20]} 63. Kf3 {[%clk 0:01:02]}  Bb8 {[%clk 0:00:21]} 64. Ke4 {[%clk 0:01:03]}  Ba7 {[%clk 0:00:22]} 65. Be6 {[%clk 0:01:03]}  Bb8 {[%clk 0:00:22]} 66. Kf5 {[%clk 0:01:03]}  Ba7 {[%clk 0:00:23]} 67. Bd5 {[%clk 0:01:02]}  Bb8 {[%clk 0:00:23]} 68. Be4 {[%clk 0:01:02]}  Ba7 {[%clk 0:00:23]} 69. Ke6 {[%clk 0:01:02]}  Bb8 {[%clk 0:00:24]} 70. Kd5 {[%clk 0:01:02]}  Ba7 {[%clk 0:00:24]} 71. Kd6 {[%clk 0:01:02]}  Be3 {[%clk 0:00:24]} 72. Kd5 {[%clk 0:01:02]}  Bf4 {[%clk 0:00:25]} 1/2-1/2


[Site "https://www.chess.com"]

[Event "Titled Tuesday Blitz January 03 Late 2023"]
[White "Hernandez Sanchez, Elvis De La Caridad"]
[Black "Garcia Almaguer, Juan Manuel"]
[WhiteFideId "6400353"]
[BlackFideId "5110491"]
[WhiteElo "2243"]
[BlackElo "2090"]
[Result "0-1"]
[Round "05"]
[TimeControl "180+2"]
[Date "2023.01.03"]
[WhiteClock "0:00:16"]
[BlackClock "0:01:17"]

1. d4 {[%clk 0:03:00]}  Nf6 {[%clk 0:02:58]} 2. Nf3 {[%clk 0:03:00]}  e6 {[%clk 0:02:55]} 3. e3 {[%clk 0:02:59]}  d5 {[%clk 0:02:53]} 4. c4 {[%clk 0:02:58]}  c5 {[%clk 0:02:53]} 5. cxd5 {[%clk 0:02:57]}  exd5 {[%clk 0:02:54]} 6. Bb5+ {[%clk 0:02:55]}  Bd7 {[%clk 0:02:54]} 7. Bxd7+ {[%clk 0:02:53]}  Nbxd7 {[%clk 0:02:55]} 8. O-O {[%clk 0:02:52]}  Rc8 {[%clk 0:02:53]} 9. b3 {[%clk 0:02:52]}  Ne4 {[%clk 0:02:50]} 10. Bb2 {[%clk 0:02:51]}  Ndf6 {[%clk 0:02:48]} 11. Nbd2 {[%clk 0:02:49]}  Bd6 {[%clk 0:02:46]} 12. dxc5 {[%clk 0:02:48]}  Bxc5 {[%clk 0:02:35]} 13. Rc1 {[%clk 0:02:43]}  O-O {[%clk 0:02:33]} 14. Nxe4 {[%clk 0:02:32]}  dxe4 {[%clk 0:02:22]} 15. Nd4 {[%clk 0:02:26]}  Qd5 {[%clk 0:02:15]} 16. Qe2 {[%clk 0:02:24]}  Bd6 {[%clk 0:02:12]} 17. Rcd1 {[%clk 0:02:09]}  Qg5 {[%clk 0:02:06]} 18. Qb5 {[%clk 0:01:37]}  Rc5 {[%clk 0:01:43]} 19. Qe2 {[%clk 0:00:32]}  Bxh2+ {[%clk 0:01:36]} 20. Kxh2 {[%clk 0:00:29]}  Qh4+ {[%clk 0:01:21]} 21. Kg1 {[%clk 0:00:29]}  Ng4 {[%clk 0:01:20]} 22. Qxg4 {[%clk 0:00:18]}  Qxg4 {[%clk 0:01:20]} 23. Rc1 {[%clk 0:00:19]}  Rg5 {[%clk 0:01:18]} 24. g3 {[%clk 0:00:17]}  Qh3 {[%clk 0:01:18]} 25. Ne2 {[%clk 0:00:16]}  Rh5 {[%clk 0:01:17]} 0-1


[Site "https://www.chess.com"]

[Event "Titled Tuesday Blitz January 03 Late 2023"]
[White "Nakamura, Hikaru"]
[Black "Kollars, Dmitrij"]
[WhiteFideId "2016192"]
[BlackFideId "12909572"]
[WhiteElo "2775"]
[BlackElo "2607"]
[Result "0-1"]
[Round "06"]
[TimeControl "180+2"]
[Date "2023.01.03"]
[WhiteClock "0:00:08"]
[BlackClock "0:00:12"]

1. Nf3 {[%clk 0:03:00]}  d5 {[%clk 0:02:58]} 2. g3 {[%clk 0:02:59]}  g6 {[%clk 0:02:54]} 3. Bg2 {[%clk 0:02:49]}  Bg7 {[%clk 0:02:54]} 4. O-O {[%clk 0:02:50]}  e5 {[%clk 0:02:54]} 5. c4 {[%clk 0:02:50]}  dxc4 {[%clk 0:02:46]} 6. Qa4+ {[%clk 0:02:47]}  Nc6 {[%clk 0:02:45]} 7. Qxc4 {[%clk 0:02:41]}  Nge7 {[%clk 0:02:43]} 8. d3 {[%clk 0:02:39]}  O-O {[%clk 0:02:43]} 9. Nc3 {[%clk 0:02:35]}  Be6 {[%clk 0:02:39]} 10. Qa4 {[%clk 0:02:24]}  h6 {[%clk 0:02:35]} 11. Ne4 {[%clk 0:02:16]}  b6 {[%clk 0:02:30]} 12. Bd2 {[%clk 0:02:10]}  Nd4 {[%clk 0:02:23]} 13. Nxd4 {[%clk 0:01:59]}  exd4 {[%clk 0:02:24]} 14. Bb4 {[%clk 0:01:49]}  c5 {[%clk 0:02:14]} 15. Nxc5 {[%clk 0:01:49]}  bxc5 {[%clk 0:02:13]} 16. Bxc5 {[%clk 0:01:50]}  Rc8 {[%clk 0:01:59]} 17. Qxa7 {[%clk 0:01:44]}  Re8 {[%clk 0:01:48]} 18. Rfc1 {[%clk 0:01:41]}  Nc6 {[%clk 0:01:38]} 19. Qb6 {[%clk 0:01:01]}  Qd7 {[%clk 0:01:37]} 20. b4 {[%clk 0:00:55]}  Bd5 {[%clk 0:01:33]} 21. b5 {[%clk 0:00:55]}  Bxg2 {[%clk 0:01:31]} 22. Kxg2 {[%clk 0:00:56]}  Qd5+ {[%clk 0:01:30]} 23. Kg1 {[%clk 0:00:56]}  Ne5 {[%clk 0:01:27]} 24. Qd6 {[%clk 0:00:38]}  Qb7 {[%clk 0:01:24]} 25. Qa6 {[%clk 0:00:28]}  Qxa6 {[%clk 0:01:12]} 26. bxa6 {[%clk 0:00:28]}  Ra8 {[%clk 0:01:12]} 27. a7 {[%clk 0:00:26]}  Nd7 {[%clk 0:01:11]} 28. Bb4 {[%clk 0:00:25]}  Rxa7 {[%clk 0:01:10]} 29. Kf1 {[%clk 0:00:25]}  Rea8 {[%clk 0:01:09]} 30. a3 {[%clk 0:00:25]}  Bf8 {[%clk 0:00:58]} 31. Rab1 {[%clk 0:00:24]}  Ne5 {[%clk 0:00:42]} 32. h3 {[%clk 0:00:18]}  Ra4 {[%clk 0:00:40]} 33. Kg2 {[%clk 0:00:16]}  R4a6 {[%clk 0:00:36]} 34. Bxf8 {[%clk 0:00:15]}  Kxf8 {[%clk 0:00:37]} 35. Rb4 {[%clk 0:00:15]}  Rd6 {[%clk 0:00:32]} 36. a4 {[%clk 0:00:15]}  Ke7 {[%clk 0:00:30]} 37. Rc5 {[%clk 0:00:15]}  Ke6 {[%clk 0:00:28]} 38. a5 {[%clk 0:00:12]}  Raa6 {[%clk 0:00:25]} 39. Rbb5 {[%clk 0:00:11]}  Nd7 {[%clk 0:00:24]} 40. Rc7 {[%clk 0:00:11]}  Rdc6 {[%clk 0:00:21]} 41. Rcb7 {[%clk 0:00:11]}  Rc2 {[%clk 0:00:21]} 42. Rb4 {[%clk 0:00:12]}  Rxe2 {[%clk 0:00:19]} 43. Rxd4 {[%clk 0:00:12]}  Ne5 {[%clk 0:00:18]} 44. Rb5 {[%clk 0:00:12]}  Kf6 {[%clk 0:00:16]} 45. Rdd5 {[%clk 0:00:11]}  Nc6 {[%clk 0:00:16]} 46. Rb6 {[%clk 0:00:11]}  Rxb6 {[%clk 0:00:14]} 47. axb6 {[%clk 0:00:12]}  Ke6 {[%clk 0:00:13]} 48. Rb5 {[%clk 0:00:11]}  Kd6 {[%clk 0:00:14]} 49. b7 {[%clk 0:00:10]}  Re8 {[%clk 0:00:13]} 50. d4 {[%clk 0:00:08]}  Rb8 {[%clk 0:00:13]} 51. d5 {[%clk 0:00:08]}  Nd8 {[%clk 0:00:13]} 52. Rb6+ {[%clk 0:00:08]}  Kxd5 {[%clk 0:00:14]} 53. Rb2 {[%clk 0:00:07]}  Ke6 {[%clk 0:00:13]} 54. Rd2 {[%clk 0:00:06]}  Ke7 {[%clk 0:00:13]} 55. Re2+ {[%clk 0:00:06]}  Ne6 {[%clk 0:00:13]} 56. Rd2 {[%clk 0:00:07]}  Rxb7 {[%clk 0:00:12]} 57. Ra2 {[%clk 0:00:08]}  Rd7 {[%clk 0:00:13]} 58. h4 {[%clk 0:00:08]}  Rd4 {[%clk 0:00:13]} 59. Ra8 {[%clk 0:00:09]}  Kf6 {[%clk 0:00:13]} 60. h5 {[%clk 0:00:09]}  gxh5 {[%clk 0:00:12]} 61. f4 {[%clk 0:00:08]}  h4 {[%clk 0:00:12]} 0-1


[Site "https://www.chess.com"]

[Event "Titled Tuesday Blitz January 03 Late 2023"]
[White "Terry, Renato"]
[Black "Carlsen, Magnus"]
[WhiteFideId "3803457"]
[BlackFideId "1503014"]
[WhiteElo "2520"]
[BlackElo "2853"]
[Result "0-1"]
[Round "06"]
[TimeControl "180+2"]
[Date "2023.01.03"]
[WhiteClock "0:00:01"]
[BlackClock "0:00:07"]

1. d4 {[%clk 0:03:00]}  d5 {[%clk 0:02:56]} 2. Nf3 {[%clk 0:03:00]}  Bf5 {[%clk 0:02:52]} 3. Bf4 {[%clk 0:02:07]}  e6 {[%clk 0:02:49]} 4. e3 {[%clk 0:02:07]}  Bd6 {[%clk 0:02:47]} 5. Bd3 {[%clk 0:02:07]}  Ne7 {[%clk 0:02:46]} 6. O-O {[%clk 0:02:06]}  Bxf4 {[%clk 0:02:41]} 7. exf4 {[%clk 0:02:07]}  Nd7 {[%clk 0:02:38]} 8. c3 {[%clk 0:01:56]}  O-O {[%clk 0:02:35]} 9. Bxf5 {[%clk 0:01:52]}  Nxf5 {[%clk 0:02:36]} 10. Nbd2 {[%clk 0:01:51]}  c5 {[%clk 0:02:37]} 11. Nb3 {[%clk 0:01:51]}  b6 {[%clk 0:02:34]} 12. Re1 {[%clk 0:01:38]}  Qc7 {[%clk 0:02:34]} 13. g3 {[%clk 0:01:37]}  Rac8 {[%clk 0:02:30]} 14. Rc1 {[%clk 0:01:37]}  Nd6 {[%clk 0:02:28]} 15. Qe2 {[%clk 0:01:35]}  a5 {[%clk 0:02:27]} 16. Nbd2 {[%clk 0:01:34]}  a4 {[%clk 0:02:27]} 17. a3 {[%clk 0:01:32]}  Nf6 {[%clk 0:02:27]} 18. Kg2 {[%clk 0:01:22]}  Nf5 {[%clk 0:02:17]} 19. Qd3 {[%clk 0:01:17]}  Qb7 {[%clk 0:02:14]} 20. h3 {[%clk 0:01:14]}  Rc7 {[%clk 0:02:12]} 21. g4 {[%clk 0:00:57]}  Nd6 {[%clk 0:02:12]} 22. Ne5 {[%clk 0:00:57]}  Nfe4 {[%clk 0:02:04]} 23. f3 {[%clk 0:00:50]}  Nxd2 {[%clk 0:02:04]} 24. Qxd2 {[%clk 0:00:50]}  Qa6 {[%clk 0:01:49]} 25. f5 {[%clk 0:00:41]}  exf5 {[%clk 0:00:58]} 26. dxc5 {[%clk 0:00:40]}  Nc4 {[%clk 0:00:58]} 27. Nxc4 {[%clk 0:00:30]}  dxc4 {[%clk 0:00:59]} 28. Qd6 {[%clk 0:00:19]}  Rxc5 {[%clk 0:00:56]} 29. Rcd1 {[%clk 0:00:19]}  Qc8 {[%clk 0:00:47]} 30. Re7 {[%clk 0:00:18]}  fxg4 {[%clk 0:00:43]} 31. hxg4 {[%clk 0:00:19]}  h5 {[%clk 0:00:41]} 32. Rd4 {[%clk 0:00:16]}  hxg4 {[%clk 0:00:35]} 33. Rxg4 {[%clk 0:00:16]}  Qf5 {[%clk 0:00:34]} 34. Re2 {[%clk 0:00:08]}  Rd5 {[%clk 0:00:11]} 35. Qxb6 {[%clk 0:00:08]}  Rfd8 {[%clk 0:00:12]} 36. Qc6 {[%clk 0:00:05]}  Rd2 {[%clk 0:00:11]} 37. Qe4 {[%clk 0:00:03]}  Qc5 {[%clk 0:00:09]} 38. Kh3 {[%clk 0:00:01]}  Qh5+ {[%clk 0:00:08]} 39. Kg2 {[%clk 0:00:01]}  g6 {[%clk 0:00:07]} 0-1


[Site "https://www.chess.com"]

[Event "Titled Tuesday Blitz January 03 Late 2023"]
[White "Perske, Thore"]
[Black "Keymer, Vincent"]
[WhiteFideId "12902195"]
[BlackFideId "12940690"]
[WhiteElo "2448"]
[BlackElo "2700"]
[Result "0-1"]
[Round "06"]
[TimeControl "180+2"]
[Date "2023.01.03"]
[WhiteClock "0:00:30"]
[BlackClock "0:00:46"]

1. d4 {[%clk 0:03:00]}  Nf6 {[%clk 0:02:59]} 2. g3 {[%clk 0:02:57]}  d5 {[%clk 0:02:58]} 3. Nf3 {[%clk 0:02:56]}  c6 {[%clk 0:02:58]} 4. c4 {[%clk 0:02:56]}  dxc4 {[%clk 0:02:56]} 5. Bg2 {[%clk 0:02:52]}  e6 {[%clk 0:02:51]} 6. O-O {[%clk 0:02:50]}  b5 {[%clk 0:02:51]} 7. a4 {[%clk 0:02:47]}  Bb7 {[%clk 0:02:46]} 8. Ne5 {[%clk 0:02:42]}  a6 {[%clk 0:02:46]} 9. b3 {[%clk 0:02:34]}  cxb3 {[%clk 0:02:46]} 10. Bb2 {[%clk 0:02:29]}  Bd6 {[%clk 0:02:31]} 11. Qxb3 {[%clk 0:02:25]}  O-O {[%clk 0:02:31]} 12. Rc1 {[%clk 0:02:13]}  Nd5 {[%clk 0:02:26]} 13. Nd2 {[%clk 0:02:08]}  Nb6 {[%clk 0:01:45]} 14. axb5 {[%clk 0:01:57]}  Bxe5 {[%clk 0:01:43]} 15. bxc6 {[%clk 0:01:46]}  Bxc6 {[%clk 0:01:42]} 16. Bxc6 {[%clk 0:01:40]}  Nxc6 {[%clk 0:01:42]} 17. Rxc6 {[%clk 0:01:41]}  Bxd4 {[%clk 0:01:40]} 18. Nf3 {[%clk 0:01:28]}  Bxb2 {[%clk 0:01:14]} 19. Qxb2 {[%clk 0:01:29]}  Rb8 {[%clk 0:01:14]} 20. Rxa6 {[%clk 0:01:20]}  Qd1+ {[%clk 0:00:58]} 21. Kg2 {[%clk 0:01:19]}  Nd5 {[%clk 0:00:59]} 22. Qe5 {[%clk 0:00:39]}  Rb1 {[%clk 0:00:56]} 23. Kh3 {[%clk 0:00:30]}  Nb4 {[%clk 0:00:46]} 0-1


[Site "https://www.chess.com"]

[Event "Titled Tuesday Blitz January 03 Late 2023"]
[White "Kravtsiv, Martyn"]
[Black "Bortnyk, Olexandr"]
[WhiteFideId "14113147"]
[BlackFideId "14120828"]
[WhiteElo "2598"]
[BlackElo "2605"]
[Result "1-0"]
[Round "06"]
[TimeControl "180+2"]
[Date "2023.01.03"]
[WhiteClock "0:00:38"]
[BlackClock "0:00:02"]

1. e4 {[%clk 0:03:00]}  Nf6 {[%clk 0:03:00]} 2. Nc3 {[%clk 0:03:00]}  d5 {[%clk 0:03:00]} 3. exd5 {[%clk 0:03:00]}  Nxd5 {[%clk 0:03:01]} 4. Nf3 {[%clk 0:03:00]}  Nxc3 {[%clk 0:03:01]} 5. bxc3 {[%clk 0:02:59]}  g6 {[%clk 0:03:01]} 6. h4 {[%clk 0:02:55]}  h6 {[%clk 0:02:59]} 7. d4 {[%clk 0:02:53]}  Bg7 {[%clk 0:03:00]} 8. Bd3 {[%clk 0:02:51]}  c5 {[%clk 0:03:00]} 9. h5 {[%clk 0:02:37]}  g5 {[%clk 0:02:58]} 10. Rb1 {[%clk 0:02:30]}  Nc6 {[%clk 0:02:55]} 11. dxc5 {[%clk 0:02:03]}  Qa5 {[%clk 0:02:47]} 12. O-O {[%clk 0:02:02]}  Qxc3 {[%clk 0:02:43]} 13. Bb2 {[%clk 0:02:00]}  Qxb2 {[%clk 0:02:43]} 14. Rxb2 {[%clk 0:02:00]}  Bxb2 {[%clk 0:02:43]} 15. Bc4 {[%clk 0:01:54]}  O-O {[%clk 0:02:38]} 16. Qd3 {[%clk 0:01:49]}  Bg7 {[%clk 0:02:30]} 17. Rb1 {[%clk 0:01:48]}  Bg4 {[%clk 0:02:03]} 18. Rxb7 {[%clk 0:01:41]}  Rad8 {[%clk 0:01:51]} 19. Qe4 {[%clk 0:01:26]}  Bxf3 {[%clk 0:01:41]} 20. gxf3 {[%clk 0:01:25]}  Ne5 {[%clk 0:01:32]} 21. Bd3 {[%clk 0:01:21]}  f5 {[%clk 0:01:13]} 22. Qe2 {[%clk 0:01:14]}  Bf6 {[%clk 0:00:37]} 23. Bxf5 {[%clk 0:01:10]}  Rd2 {[%clk 0:00:35]} 24. Qe4 {[%clk 0:01:05]}  Rd4 {[%clk 0:00:20]} 25. Qe3 {[%clk 0:00:53]}  Rf4 {[%clk 0:00:11]} 26. Bg4 {[%clk 0:00:48]}  Rd8 {[%clk 0:00:03]} 27. Rxe7 {[%clk 0:00:38]}  Rd1+ {[%clk 0:00:03]} 28. Kg2 {[%clk 0:00:38]}  Nxg4 {[%clk 0:00:03]} 29. Qe6+ {[%clk 0:00:37]}  Kh8 {[%clk 0:00:02]} 30. Re8+ {[%clk 0:00:37]}  Kh7 {[%clk 0:00:02]} 31. Qg8# {[%clk 0:00:38]} 1-0


[Site "https://www.chess.com"]

[Event "Titled Tuesday Blitz January 03 Late 2023"]
[White "Kobalia, Mikhail"]
[Black "Pranav, V"]
[WhiteFideId "4119150"]
[BlackFideId "25060783"]
[WhiteElo "2578"]
[BlackElo "2597"]
[Result "1-0"]
[Round "06"]
[TimeControl "180+2"]
[Date "2023.01.03"]
[WhiteClock "0:01:05"]
[BlackClock "0:00:26"]

1. e4 {[%clk 0:02:49]}  e5 {[%clk 0:02:58]} 2. Nf3 {[%clk 0:02:49]}  Nc6 {[%clk 0:02:59]} 3. Bb5 {[%clk 0:02:50]}  a6 {[%clk 0:02:59]} 4. Ba4 {[%clk 0:02:50]}  d6 {[%clk 0:03:00]} 5. O-O {[%clk 0:02:48]}  Bd7 {[%clk 0:03:00]} 6. d4 {[%clk 0:02:47]}  Nf6 {[%clk 0:02:55]} 7. Bxc6 {[%clk 0:02:45]}  Bxc6 {[%clk 0:02:54]} 8. Re1 {[%clk 0:02:45]}  Be7 {[%clk 0:02:51]} 9. Nc3 {[%clk 0:02:44]}  exd4 {[%clk 0:02:46]} 10. Nxd4 {[%clk 0:02:44]}  O-O {[%clk 0:02:47]} 11. Nf5 {[%clk 0:02:37]}  Re8 {[%clk 0:02:46]} 12. Nxe7+ {[%clk 0:02:37]}  Qxe7 {[%clk 0:02:44]} 13. Bf4 {[%clk 0:02:37]}  Rad8 {[%clk 0:02:41]} 14. Qd4 {[%clk 0:02:36]}  h6 {[%clk 0:02:39]} 15. f3 {[%clk 0:02:36]}  Qe6 {[%clk 0:02:36]} 16. Rad1 {[%clk 0:02:34]}  Nh5 {[%clk 0:02:25]} 17. Be3 {[%clk 0:02:31]}  Qg6 {[%clk 0:02:21]} 18. Qd2 {[%clk 0:02:30]}  Nf6 {[%clk 0:02:18]} 19. Ne2 {[%clk 0:02:28]}  Nd7 {[%clk 0:02:14]} 20. Nd4 {[%clk 0:02:26]}  Ne5 {[%clk 0:02:13]} 21. Qf2 {[%clk 0:02:25]}  Bd7 {[%clk 0:02:11]} 22. b3 {[%clk 0:02:24]}  c5 {[%clk 0:02:08]} 23. Ne2 {[%clk 0:02:23]}  Bc6 {[%clk 0:02:07]} 24. Ng3 {[%clk 0:02:19]}  Bd7 {[%clk 0:02:03]} 25. Kh1 {[%clk 0:02:18]}  Bc8 {[%clk 0:02:01]} 26. Rd2 {[%clk 0:02:17]}  h5 {[%clk 0:01:55]} 27. h4 {[%clk 0:02:11]}  f5 {[%clk 0:01:38]} 28. Bg5 {[%clk 0:02:10]}  f4 {[%clk 0:01:16]} 29. Bxf4 {[%clk 0:02:01]}  Nf7 {[%clk 0:01:16]} 30. Red1 {[%clk 0:01:53]}  Rf8 {[%clk 0:01:11]} 31. Qe3 {[%clk 0:01:44]}  Rfe8 {[%clk 0:01:03]} 32. Kh2 {[%clk 0:01:37]}  Rd7 {[%clk 0:00:53]} 33. Bg5 {[%clk 0:01:35]}  Ne5 {[%clk 0:00:38]} 34. Nf5 {[%clk 0:01:30]}  d5 {[%clk 0:00:25]} 35. Rxd5 {[%clk 0:01:14]}  Rxd5 {[%clk 0:00:25]} 36. Rxd5 {[%clk 0:01:13]}  Bxf5 {[%clk 0:00:25]} 37. exf5 {[%clk 0:01:13]}  Qxf5 {[%clk 0:00:26]} 38. Bf4 {[%clk 0:01:05]} 1-0


[Site "https://www.chess.com"]

[Event "Titled Tuesday Blitz January 03 Late 2023"]
[White "Boros, Denes"]
[Black "Bluebaum, Matthias"]
[WhiteFideId "722340"]
[BlackFideId "24651516"]
[WhiteElo "2406"]
[BlackElo "2669"]
[Result "1/2-1/2"]
[Round "06"]
[TimeControl "180+2"]
[Date "2023.01.03"]
[WhiteClock "0:00:26"]
[BlackClock "0:00:05"]

1. d3 {[%clk 0:03:00]}  d5 {[%clk 0:02:59]} 2. g3 {[%clk 0:03:00]}  Nf6 {[%clk 0:02:57]} 3. Bg2 {[%clk 0:03:00]}  e5 {[%clk 0:02:58]} 4. c4 {[%clk 0:03:00]}  c6 {[%clk 0:02:55]} 5. Nf3 {[%clk 0:02:58]}  Bd6 {[%clk 0:02:55]} 6. O-O {[%clk 0:02:58]}  O-O {[%clk 0:02:56]} 7. Nc3 {[%clk 0:02:58]}  d4 {[%clk 0:02:55]} 8. Nb1 {[%clk 0:02:55]}  h6 {[%clk 0:02:53]} 9. e3 {[%clk 0:02:52]}  c5 {[%clk 0:02:47]} 10. Na3 {[%clk 0:02:50]}  Nc6 {[%clk 0:02:47]} 11. Re1 {[%clk 0:02:49]}  Be6 {[%clk 0:02:37]} 12. Nc2 {[%clk 0:02:43]}  a5 {[%clk 0:02:35]} 13. b3 {[%clk 0:02:39]}  Nd7 {[%clk 0:02:25]} 14. Nd2 {[%clk 0:02:27]}  Re8 {[%clk 0:02:18]} 15. Rb1 {[%clk 0:02:22]}  Bf5 {[%clk 0:02:12]} 16. Ne4 {[%clk 0:02:21]}  Bf8 {[%clk 0:02:12]} 17. a3 {[%clk 0:02:21]}  Bg6 {[%clk 0:02:07]} 18. g4 {[%clk 0:02:21]}  Nf6 {[%clk 0:02:00]} 19. Nxf6+ {[%clk 0:02:05]}  Qxf6 {[%clk 0:02:01]} 20. e4 {[%clk 0:02:05]}  Qh4 {[%clk 0:01:54]} 21. Qf3 {[%clk 0:02:01]}  Be7 {[%clk 0:01:48]} 22. Qg3 {[%clk 0:01:57]}  Bg5 {[%clk 0:01:40]} 23. Qxh4 {[%clk 0:01:34]}  Bxh4 {[%clk 0:01:41]} 24. Rb2 {[%clk 0:01:29]}  Bg5 {[%clk 0:01:40]} 25. b4 {[%clk 0:01:26]}  axb4 {[%clk 0:01:38]} 26. axb4 {[%clk 0:01:27]}  Nxb4 {[%clk 0:01:05]} 27. Nxb4 {[%clk 0:01:25]}  cxb4 {[%clk 0:00:43]} 28. Bxg5 {[%clk 0:01:20]}  hxg5 {[%clk 0:00:44]} 29. Rxb4 {[%clk 0:01:19]}  Ra7 {[%clk 0:00:40]} 30. Reb1 {[%clk 0:01:16]}  Re7 {[%clk 0:00:41]} 31. Bf1 {[%clk 0:01:02]}  f6 {[%clk 0:00:38]} 32. Rb6 {[%clk 0:00:56]}  Be8 {[%clk 0:00:38]} 33. Kg2 {[%clk 0:00:55]}  Bc6 {[%clk 0:00:38]} 34. Be2 {[%clk 0:00:48]}  Ra2 {[%clk 0:00:36]} 35. R6b2 {[%clk 0:00:48]}  Ra3 {[%clk 0:00:36]} 36. Rb3 {[%clk 0:00:48]}  Ra7 {[%clk 0:00:36]} 37. R3b2 {[%clk 0:00:47]}  Re8 {[%clk 0:00:36]} 38. Bd1 {[%clk 0:00:47]}  Rea8 {[%clk 0:00:36]} 39. Bb3 {[%clk 0:00:47]}  Kh7 {[%clk 0:00:36]} 40. Kg3 {[%clk 0:00:47]}  Ra3 {[%clk 0:00:35]} 41. Kg2 {[%clk 0:00:43]}  Kg6 {[%clk 0:00:35]} 42. h3 {[%clk 0:00:41]}  R8a6 {[%clk 0:00:34]} 43. c5 {[%clk 0:00:37]}  R6a5 {[%clk 0:00:32]} 44. Bd5 {[%clk 0:00:33]}  Rxc5 {[%clk 0:00:26]} 45. Bxc6 {[%clk 0:00:33]}  bxc6 {[%clk 0:00:26]} 46. Rb7 {[%clk 0:00:33]}  Rc2 {[%clk 0:00:15]} 47. Rc7 {[%clk 0:00:30]}  Raa2 {[%clk 0:00:05]} 48. Rbb7 {[%clk 0:00:28]}  Rxf2+ {[%clk 0:00:05]} 49. Kg1 {[%clk 0:00:28]}  Rg2+ {[%clk 0:00:06]} 50. Kf1 {[%clk 0:00:27]}  Rgf2+ {[%clk 0:00:06]} 51. Kg1 {[%clk 0:00:27]}  Rg2+ {[%clk 0:00:06]} 52. Kf1 {[%clk 0:00:26]}  Rgf2+ {[%clk 0:00:05]} 53. Kg1 {[%clk 0:00:26]} 1/2-1/2


[Site "https://www.chess.com"]